fUSD/lending_fUSD_20260217
["ID","MTS","AMOUNT","RATE_DAILY","PERIOD"]
[405802464,1771325442183,-147515.91,0.00013304,2]
[405802465,1771325442193,-27737.69540553,0.00013391,2]
[405802466,1771325442203,-8685.08379471,0.00013413,2]
[405802467,1771325442213,-1549.59,0.00013421,2]
[405802468,1771325442222,-3000.0,0.00013519,2]
[405802469,1771325442232,-5814.85261277,0.00013528,2]
[405802470,1771325442241,-500.0,0.00013556,2]
[405802471,1771325442251,-1276.28087809,0.00013629,2]
[405802472,1771325442260,-9035.0,0.00013637,2]
[405802473,1771325442269,-160.0,0.00013652,2]
[405802474,1771325442279,-173.57638878,0.00013652,2]
[405802475,1771325442288,-166.66,0.00013692,2]
[405802476,1771325442297,-500.0,0.00013698,2]
[405802477,1771325442307,-503.24510855,0.00013698,2]
[405802478,1771325442316,-500.0,0.00013698,2]
[405802479,1771325442325,-500.0,0.00013698,2]
[405802480,1771325442334,-500.0,0.00013698,2]
[405802481,1771325442343,-500.0,0.00013698,2]
[405802482,1771325442353,-500.0,0.00013698,2]
[405802483,1771325442363,-500.0,0.00013698,2]
[405802484,1771325442372,-500.0,0.00013698,2]
[405802485,1771325442381,-500.0,0.00013698,2]
[405802486,1771325442391,-500.0,0.00013698,2]
[405802487,1771325442400,-500.0,0.00013698,2]
[405802488,1771325442409,-500.0,0.00013698,2]
[405802489,1771325442419,-500.0,0.00013698,2]
[405802490,1771325442428,-500.0,0.00013698,2]
[405802491,1771325442437,-500.0,0.00013698,2]
[405802492,1771325442446,-500.0,0.00013698,2]
[405802493,1771325442456,-500.0,0.00013698,2]
[405802494,1771325442466,-161.76553767,0.00013698,2]
[405802495,1771325442475,-500.0,0.00013698,2]
[405802496,1771325442485,-500.0,0.00013698,2]
[405802497,1771325442495,-500.0,0.00013698,2]
[405802498,1771325442505,-205.75338066,0.00013698,2]
[405802499,1771325442514,-500.0,0.00013698,2]
[405802500,1771325442523,-500.0,0.00013698,2]
[405802501,1771325442533,-500.0,0.00013698,2]
[405802502,1771325442545,-500.0,0.00013698,2]
[405802503,1771325442555,-500.0,0.00013698,2]
[405802504,1771325442564,-500.0,0.00013698,2]
[405802505,1771325442575,-500.0,0.00013698,2]
[405802506,1771325442585,-500.0,0.00013698,2]
[405802507,1771325442603,-500.0,0.00013698,2]
[405802508,1771325442612,-500.0,0.00013698,2]
[405802509,1771325442622,-391.46615766,0.00013698,2]
[405802510,1771325442634,-500.0,0.00013698,2]
[405802511,1771325442644,-500.0,0.00013698,2]
[405802512,1771325442654,-400.27334963,0.00013698,2]
[405802513,1771325442664,-699.91,0.00013698,2]
[405802514,1771325442674,-699.91,0.00013698,2]
[405802515,1771325442684,-699.91,0.00013698,2]
[405802516,1771325442694,-699.91,0.00013698,2]
[405802517,1771325442707,-699.91,0.00013698,2]
[405802518,1771325442717,-699.91,0.00013698,2]
[405802519,1771325442726,-699.91,0.00013698,2]
[405802520,1771325442736,-699.91,0.00013698,2]
[405802521,1771325442746,-699.91,0.00013698,2]
[405802523,1771325442755,-699.91,0.00013698,2]
[405802524,1771325442765,-699.91,0.00013698,2]
[405802525,1771325442774,-699.91,0.00013698,2]
[405802526,1771325442783,-699.91,0.00013698,2]
[405802527,1771325442795,-699.91,0.00013698,2]
[405802529,1771325442804,-699.91,0.00013698,2]
[405802530,1771325442813,-699.91,0.00013698,2]
[405802531,1771325442823,-699.91,0.00013698,2]
[405802532,1771325442832,-699.91,0.00013698,2]
[405802533,1771325442842,-699.91,0.00013698,2]
[405802534,1771325442851,-699.91,0.00013698,2]
[405802535,1771325442860,-699.91,0.00013698,2]
[405802536,1771325442870,-699.91,0.00013698,2]
[405802537,1771325442879,-699.91,0.00013698,2]
[405802538,1771325442889,-700.13619195,0.00013698,2]
[405802539,1771325442898,-500.0,0.00013698,2]
[405802540,1771325442907,-500.0,0.00013698,2]
[405802542,1771325442917,-500.0,0.00013698,2]
[405802544,1771325442927,-500.0,0.00013698,2]
[405802545,1771325442936,-500.0,0.00013698,2]
[405802546,1771325442945,-500.0,0.00013698,2]
[405802547,1771325442955,-500.0,0.00013698,2]
[405802548,1771325442964,-500.0,0.00013698,2]
[405802549,1771325442973,-500.0,0.00013698,2]
[405802550,1771325442982,-500.0,0.00013698,2]
[405802551,1771325442992,-500.0,0.00013698,2]
[405802552,1771325443001,-500.0,0.00013698,2]
[405802553,1771325443010,-500.0,0.00013698,2]
[405802554,1771325443020,-500.0,0.00013698,2]
[405802555,1771325443029,-500.0,0.00013698,2]
[405802556,1771325443039,-500.0,0.00013698,2]
[405802557,1771325443049,-500.0,0.00013698,2]
[405802558,1771325443059,-500.0,0.00013698,2]
[405802559,1771325443068,-500.0,0.00013698,2]
[405802560,1771325443079,-500.0,0.00013698,2]
[405802561,1771325443089,-500.0,0.00013698,2]
[405802562,1771325443099,-500.0,0.00013698,2]
[405802563,1771325443108,-500.0,0.00013698,2]
[405802564,1771325443118,-500.0,0.00013698,2]
[405802565,1771325443128,-500.0,0.00013698,2]
[405802566,1771325443138,-500.0,0.00013698,2]
[405802567,1771325443148,-500.0,0.00013698,2]
[405802568,1771325443158,-500.0,0.00013698,2]
[405802569,1771325443168,-500.0,0.00013698,2]
[405802570,1771325443179,-500.0,0.00013698,2]
[405802571,1771325443188,-500.0,0.00013698,2]
[405802572,1771325443199,-388.47570654,0.00013698,2]
[405802573,1771325443208,-500.0,0.00013698,2]
[405802574,1771325443218,-500.0,0.00013698,2]
[405802575,1771325443229,-500.0,0.00013698,2]
[405802576,1771325443238,-500.0,0.00013698,2]
[405802577,1771325443248,-500.0,0.00013698,2]
[405802578,1771325443258,-500.0,0.00013698,2]
[405802579,1771325443267,-500.0,0.00013698,2]
[405802580,1771325443277,-500.0,0.00013698,2]
[405802581,1771325443286,-500.0,0.00013698,2]
[405802582,1771325443297,-500.0,0.00013698,2]
[405802583,1771325443306,-500.0,0.00013698,2]
[405802584,1771325443316,-500.0,0.00013698,2]
[405802585,1771325443325,-500.0,0.00013698,2]
[405802587,1771325443334,-500.0,0.00013698,2]
[405802589,1771325443343,-500.0,0.00013698,2]
[405802591,1771325443352,-500.0,0.00013698,2]
[405802593,1771325443361,-500.0,0.00013698,2]
[405802595,1771325443371,-500.0,0.00013698,2]
[405802597,1771325443380,-500.0,0.00013698,2]
[405802599,1771325443389,-500.0,0.00013698,2]
[405802601,1771325443399,-500.0,0.00013698,2]
[405802603,1771325443408,-500.0,0.00013698,2]
[405802605,1771325443418,-500.0,0.00013698,2]
[405802607,1771325443427,-500.0,0.00013698,2]
[405802609,1771325443436,-500.0,0.00013698,2]
[405802611,1771325443445,-500.0,0.00013698,2]
[405802613,1771325443455,-500.0,0.00013698,2]
[405802615,1771325443464,-500.0,0.00013698,2]
[405802616,1771325443474,-500.0,0.00013698,2]
[405802617,1771325443483,-197.6651859,0.00013698,2]
[405802618,1771325443492,-500.0,0.00013698,2]
[405802619,1771325443501,-500.0,0.00013698,2]
[405802620,1771325443511,-500.0,0.00013698,2]
[405802621,1771325443521,-522.2154278,0.00013698,2]
[405802622,1771325443530,-1240.62,0.00013698,2]
[405802623,1771325443539,-1240.62,0.00013698,2]
[405802624,1771325443549,-1240.62,0.00013698,2]
[405802625,1771325443558,-1240.62,0.00013698,2]
[405802626,1771325443568,-1240.62,0.00013698,2]
[405802627,1771325443579,-1240.62,0.00013698,2]
[405802628,1771325443591,-1240.62,0.00013698,2]
[405802629,1771325443602,-1240.62,0.00013698,2]
[405802630,1771325443611,-1240.62,0.00013698,2]
[405802631,1771325443620,-1240.62,0.00013698,2]
[405802632,1771325443630,-1240.62,0.00013698,2]
[405802633,1771325443641,-1240.62,0.00013698,2]
[405802634,1771325443650,-1240.62,0.00013698,2]
[405802635,1771325443659,-1240.62,0.00013698,2]
[405802636,1771325443669,-1240.62,0.00013698,2]
[405802637,1771325443679,-1240.62,0.00013698,2]
[405802638,1771325443688,-1240.62,0.00013698,2]
[405802639,1771325443697,-1240.62,0.00013698,2]
[405802640,1771325443707,-1240.62,0.00013698,2]
[405802641,1771325443716,-1240.62,0.00013698,2]
[405802642,1771325443726,-1240.62,0.00013698,2]
[405802643,1771325443735,-1240.62,0.00013698,2]
[405802644,1771325443744,-1240.62,0.00013698,2]
[405802645,1771325443753,-1240.83343843,0.00013698,2]
[405802646,1771325443762,-456.05800986,0.00013698,2]
[405802647,1771325443772,-500.0,0.00013698,2]
[405802648,1771325443781,-500.0,0.00013698,2]
[405802649,1771325443792,-500.0,0.00013698,2]
[405802650,1771325443801,-500.0,0.00013698,2]
[405802651,1771325443811,-500.0,0.00013698,2]
[405802652,1771325443821,-500.0,0.00013698,2]
[405802653,1771325443830,-500.0,0.00013698,2]
[405802654,1771325443839,-500.0,0.00013698,2]
[405802655,1771325443849,-500.0,0.00013698,2]
[405802656,1771325443858,-500.0,0.00013698,2]
[405802657,1771325443868,-430.55674509,0.00013698,2]
[405802658,1771325443877,-500.0,0.00013698,2]
[405802659,1771325443886,-500.0,0.00013698,2]
[405802660,1771325443895,-500.0,0.00013698,2]
[405802661,1771325443905,-500.0,0.00013698,2]
[405802662,1771325443914,-500.0,0.00013698,2]
[405802663,1771325443924,-500.0,0.00013698,2]
[405802664,1771325443933,-500.0,0.00013698,2]
[405802665,1771325443942,-500.0,0.00013698,2]
[405802666,1771325443951,-500.0,0.00013698,2]
[405802667,1771325443961,-500.0,0.00013698,2]
[405802668,1771325443970,-500.0,0.00013698,2]
[405802669,1771325443979,-500.0,0.00013698,2]
[405802670,1771325443989,-500.0,0.00013698,2]
[405802671,1771325443998,-500.0,0.00013698,2]
[405802672,1771325444008,-500.0,0.00013698,2]
[405802673,1771325444018,-500.0,0.00013698,2]
[405802674,1771325444028,-500.0,0.00013698,2]
[405802675,1771325444038,-500.0,0.00013698,2]
[405802676,1771325444048,-505.24249427,0.00013698,2]
[405802677,1771325444058,-506.79858148,0.00013698,2]
[405802678,1771325444067,-535.55684817,0.00013698,2]
[405802679,1771325444077,-500.0,0.00013698,2]
[405802680,1771325444087,-500.0,0.00013698,2]
[405802681,1771325444096,-500.0,0.00013698,2]
[405802682,1771325444106,-639.90682726,0.00013698,2]
[405802683,1771325444116,-915.21,0.00013698,2]
[405802684,1771325444126,-915.21,0.00013698,2]
[405802685,1771325444136,-915.21,0.00013698,2]
[405802686,1771325444146,-915.21,0.00013698,2]
[405802687,1771325444156,-915.21,0.00013698,2]
[405802688,1771325444166,-915.21,0.00013698,2]
[405802689,1771325444175,-915.21,0.00013698,2]
[405802690,1771325444185,-915.21,0.00013698,2]
[405802691,1771325444195,-915.21,0.00013698,2]
[405802692,1771325444204,-915.21,0.00013698,2]
[405802693,1771325444219,-915.21,0.00013698,2]
[405802694,1771325444229,-915.21,0.00013698,2]
[405802695,1771325444239,-915.21,0.00013698,2]
[405802696,1771325444248,-915.21,0.00013698,2]
[405802697,1771325444258,-915.21,0.00013698,2]
[405802698,1771325444267,-915.21,0.00013698,2]
[405802699,1771325444276,-915.21,0.00013698,2]
[405802700,1771325444286,-915.21,0.00013698,2]
[405802701,1771325444296,-500.0,0.00013698,2]
[405802702,1771325444305,-500.0,0.00013698,2]
[405802703,1771325444316,-500.0,0.00013698,2]
[405802704,1771325444325,-307.44205355,0.00013698,2]
[405802705,1771325444334,-500.0,0.00013698,2]
[405802706,1771325444344,-500.0,0.00013698,2]
[405802707,1771325444423,-500.0,0.00013698,2]
[405802708,1771325444432,-500.0,0.00013698,2]
[405802709,1771325444441,-500.0,0.00013698,2]
[405802710,1771325444450,-500.0,0.00013698,2]
[405802711,1771325444459,-500.0,0.00013698,2]
[405802712,1771325444469,-500.0,0.00013698,2]
[405802713,1771325444479,-500.0,0.00013698,2]
[405802714,1771325444488,-500.0,0.00013698,2]
[405802715,1771325444498,-500.0,0.00013698,2]
[405802716,1771325444507,-500.0,0.00013698,2]
[405802717,1771325444516,-500.0,0.00013698,2]
[405802718,1771325444526,-500.0,0.00013698,2]
[405802719,1771325444535,-500.0,0.00013698,2]
[405802720,1771325444544,-500.0,0.00013698,2]
[405802721,1771325444554,-500.0,0.00013698,2]
[405802722,1771325444563,-286.9609652,0.00013698,2]
[405802723,1771325444572,-349.69131006,0.00013698,2]
[405802724,1771325444581,-500.0,0.00013698,2]
[405802725,1771325444594,-500.0,0.00013698,2]
[405802726,1771325444603,-500.0,0.00013698,2]
[405802727,1771325444612,-500.0,0.00013698,2]
[405802728,1771325444621,-511.5660924,0.00013698,2]
[405802729,1771325444631,-529.40507312,0.00013698,2]
[405802730,1771325444640,-500.0,0.00013698,2]
[405802731,1771325444649,-500.0,0.00013698,2]
[405802732,1771325444661,-500.0,0.00013698,2]
[405802733,1771325444670,-500.0,0.00013698,2]
[405802734,1771325444679,-500.0,0.00013698,2]
[405802735,1771325444689,-500.0,0.00013698,2]
[405802736,1771325444698,-500.0,0.00013698,2]
[405802737,1771325444707,-500.0,0.00013698,2]
[405802738,1771325444716,-500.0,0.00013698,2]
[405802739,1771325444726,-500.0,0.00013698,2]
[405802740,1771325444735,-500.0,0.00013698,2]
[405802741,1771325444744,-500.0,0.00013698,2]
[405802742,1771325444753,-500.0,0.00013698,2]
[405802743,1771325444763,-500.0,0.00013698,2]
[405802744,1771325444772,-500.0,0.00013698,2]
[405802745,1771325444781,-596.80603134,0.00013698,2]
[405802746,1771325444791,-704.93,0.00013699,2]
[405802747,1771325444800,-151.02878078,0.00013699,2]
[405802748,1771325444810,-500.0,0.0001383,2]
[405802749,1771325444819,-915.21,0.00013846,2]
[405802750,1771325444828,-500.0,0.00013882,2]
[405802751,1771325444837,-500.0,0.00013882,2]
[405802752,1771325444846,-500.0,0.00013882,2]
[405802753,1771325444856,-500.0,0.00013882,2]
[405802754,1771325444865,-500.0,0.00013882,2]
[405802755,1771325444874,-500.0,0.00013882,2]
[405802756,1771325444883,-578.20924308,0.00013882,2]
[405802757,1771325444893,-500.0,0.00013882,2]
[405802758,1771325444903,-500.0,0.00013882,2]
[405802759,1771325444912,-500.0,0.00013882,2]
[405802760,1771325444921,-196.35493044,0.00013882,2]
[405802761,1771325444930,-209.40437684,0.00013882,2]
[405802762,1771325444939,-500.0,0.00013882,2]
[405802763,1771325444949,-151.0,0.00013882,2]
[405802764,1771325444958,-500.0,0.00013882,2]
[405802765,1771325444967,-9552.16786547,0.00013882,2]
[405802766,1771325444976,-3000.0,0.00013882,2]
[405802767,1771325444986,-151.0,0.00013882,2]
[405802768,1771325444996,-500.0,0.00013882,2]
[405802769,1771325445006,-3000.0,0.00013882,2]
[405802770,1771325445015,-151.0,0.00013882,2]
[405802771,1771325445025,-3000.0,0.00013882,2]
[405802772,1771325445034,-151.0,0.00013882,2]
[405802773,1771325445044,-500.0,0.00013882,2]
[405802774,1771325445053,-160.0,0.00013882,2]
[405802775,1771325445062,-3000.0,0.00013882,2]
[405802776,1771325445072,-151.0,0.00013882,2]
[405802777,1771325445081,-500.0,0.00013882,2]
[405802778,1771325445091,-3000.0,0.00013882,2]
[405802779,1771325445101,-151.0,0.00013882,2]
[405802780,1771325445110,-500.0,0.00013882,2]
[405802781,1771325445119,-3000.0,0.00013882,2]
[405802782,1771325445129,-151.0,0.00013882,2]
[405802783,1771325445138,-500.0,0.00013882,2]
[405802784,1771325445147,-3000.0,0.00013882,2]
[405802785,1771325445157,-261.90795033,0.00013882,2]
[405802786,1771325445166,-500.0,0.00013882,2]
[405802787,1771325445176,-3099.28707761,0.00013882,2]
[405802788,1771325445185,-200.0,0.00013882,2]
[405802789,1771325445195,-500.0,0.00013882,2]
[405802790,1771325445204,-500.0,0.00013882,2]
[405802791,1771325445214,-500.0,0.00013882,2]
[405802792,1771325445223,-721.12765535,0.00013882,2]
[405802793,1771325445232,-177.7218892,0.00013882,2]
[405802794,1771325445241,-250.0,0.00013882,2]
[405802795,1771325445251,-151.12957794,0.00013882,2]
[405802796,1771325445260,-250.0,0.00013882,2]
[405802797,1771325445269,-250.0,0.00013882,2]
[405802798,1771325445278,-250.0,0.00013882,2]
[405802799,1771325445287,-250.0,0.00013882,2]
[405802800,1771325445297,-250.0,0.00013882,2]
[405802801,1771325445307,-250.0,0.00013882,2]
[405802802,1771325445316,-250.0,0.00013882,2]
[405802803,1771325445325,-250.0,0.00013882,2]
[405802804,1771325445335,-250.0,0.00013882,2]
[405802805,1771325445343,-250.0,0.00013882,2]
[405802806,1771325445352,-250.0,0.00013882,2]
[405802807,1771325445362,-250.0,0.00013882,2]
[405802808,1771325445371,-250.0,0.00013882,2]
[405802809,1771325445380,-250.0,0.00013882,2]
[405802810,1771325445389,-302.70619241,0.00013882,2]
[405802811,1771325445399,-250.0,0.00013882,2]
[405802812,1771325445408,-1000.0,0.00013882,2]
[405802813,1771325445417,-1000.0,0.00013882,2]
[405802814,1771325445426,-526.36214318,0.00013882,2]
[405802815,1771325445435,-3000.0,0.00013882,2]
[405802816,1771325445445,-250.0,0.00013882,2]
[405802817,1771325445454,-3000.0,0.00013882,2]
[405802818,1771325445463,-1070.81608438,0.00013882,2]
[405802819,1771325445472,-250.0,0.00013882,2]
[405802820,1771325445481,-250.0,0.00013882,2]
[405802821,1771325445490,-250.0,0.00013882,2]
[405802822,1771325445500,-1428.38747117,0.00013882,2]
[405802823,1771325445509,-250.0,0.00013882,2]
[405802824,1771325445518,-250.0,0.00013882,2]
[405802825,1771325445527,-299.40346672,0.00013882,2]
[405802826,1771325445536,-162.380719,0.00013882,2]
[405802827,1771325445545,-151.0,0.00013882,2]
[405802828,1771325445554,-250.0,0.00013882,2]
[405802829,1771325445563,-250.0,0.00013882,2]
[405802831,1771325445572,-250.0,0.00013882,2]
[405802832,1771325445581,-250.0,0.00013882,2]
[405802833,1771325445591,-250.0,0.00013882,2]
[405802834,1771325445602,-250.0,0.00013882,2]
[405802835,1771325445611,-250.0,0.00013882,2]
[405802836,1771325445620,-250.0,0.00013882,2]
[405802837,1771325445629,-250.0,0.00013882,2]
[405802838,1771325445640,-250.0,0.00013882,2]
[405802839,1771325445649,-250.0,0.00013882,2]
[405802840,1771325445658,-253.83621088,0.00013882,2]
[405802841,1771325445668,-279.55615727,0.00013882,2]
[405802842,1771325445678,-250.0,0.00013882,2]
[405802843,1771325445687,-250.0,0.00013882,2]
[405802844,1771325445696,-693.3919763,0.00013882,2]
[405802845,1771325445706,-250.0,0.00013882,2]
[405802846,1771325445715,-250.0,0.00013882,2]
[405802847,1771325445724,-250.0,0.00013882,2]
[405802848,1771325445733,-250.0,0.00013882,2]
[405802849,1771325445742,-250.0,0.00013882,2]
[405802850,1771325445751,-250.0,0.00013882,2]
[405802851,1771325445760,-250.0,0.00013882,2]
[405802852,1771325445770,-250.0,0.00013882,2]
[405802853,1771325445779,-250.0,0.00013882,2]
[405802854,1771325445788,-9905.5980765,0.00013937,2]
[405802855,1771325445797,-151.0,0.00013937,2]
[405802856,1771325445807,-719.04747942,0.00013937,2]
[405802857,1771325445816,-166.66,0.00013981,2]
[405802858,1771325445825,-10272.10520533,0.00013992,2]
[405802859,1771325445834,-151.0,0.00013992,2]
[405802860,1771325445846,-745.65223616,0.00013992,2]
[405802861,1771325445855,-166.66,0.00014023,2]
[405802862,1771325445864,-2125.36664557,0.00014047,2]
[405802863,1771325445874,-151.0,0.00014047,2]
[405802864,1771325445883,-773.2413689,0.00014047,2]
[405802865,1771325445892,-846.3153877,0.00014067,2]
[405802866,1771325445902,-151.0,0.00014102,2]
[405802867,1771325445911,-801.85129955,0.00014102,2]
[405802868,1771325445920,-500.0,0.00014104,2]
[405802869,1771325445930,-151.0,0.00014157,2]
[405802870,1771325445939,-831.51979763,0.00014157,2]
[405802871,1771325445949,-151.0,0.00014212,2]
[405802872,1771325445959,-862.28603014,0.00014212,2]
[405802873,1771325445970,-8685.08379471,0.0001423,2]
[405802874,1771325445979,-151.0,0.00014267,2]
[405802875,1771325445989,-894.19061326,0.00014267,2]
[405802876,1771325445998,-166.66,0.00014269,2]
[405802877,1771325446007,-151.0,0.00014322,2]
[405802878,1771325446017,-927.27566595,0.00014322,2]
[405802879,1771325446026,-27737.69540553,0.0001434,2]
[405802880,1771325446036,-151.0,0.00014377,2]
[405802881,1771325446047,-961.58486559,0.00014377,2]
[405802882,1771325446056,-500.0,0.00014378,2]
[405802883,1771325446066,-704.93,0.00014384,2]
[405802884,1771325446075,-217.15233878,0.0001443,2]
[405802885,1771325446085,-200.0,0.0001443,2]
[405802886,1771325446095,-527.32864652,0.0001443,2]
[405802887,1771325446104,-151.0,0.00014432,2]
[405802888,1771325446113,-997.16350561,0.00014432,2]
[405802889,1771325446123,-166.66,0.00014486,2]
[405802890,1771325446132,-151.0,0.00014487,2]
[405802891,1771325446142,-151.0,0.00014542,2]
[405802892,1771325446151,-166.66,0.00014557,2]
[405802893,1771325446171,-151.0,0.00014597,2]
[405802894,1771325446182,-151.0,0.00014634,2]
[405802895,1771325446192,-151.0,0.00014634,2]
[405802896,1771325446202,-151.0,0.00014634,2]
[405802897,1771325446212,-267.05598539,0.00014652,2]
[405802898,1771325446222,-500.0,0.00014652,2]
[405802899,1771325446232,-150.0,0.00014708,2]
[405802900,1771325446242,-500.0,0.00014708,2]
[405802901,1771325446252,-500.0,0.00014708,2]
[405802902,1771325446261,-500.0,0.00014708,2]
[405802903,1771325446271,-150.31509327,0.00014708,2]
[405802904,1771325446280,-500.0,0.00014708,2]
[405802905,1771325446289,-500.0,0.00014708,2]
[405802906,1771325446299,-596.0,0.00014708,2]
[405802907,1771325446308,-150.0,0.00014708,2]
[405802908,1771325446318,-500.0,0.00014708,2]
[405802909,1771325446328,-2399.311269,0.00014727,7]
[405802910,1771325446337,-337.87,0.00014752,2]
[405802911,1771325446347,-241.70774661,0.00014754,2]
[405802912,1771325446356,-150.0,0.00014763,2]
[405802913,1771325446366,-500.0,0.00014763,2]
[405802914,1771325446375,-500.0,0.00014763,2]
[405802915,1771325446384,-500.0,0.00014763,2]
[405802916,1771325446394,-500.0,0.00014763,2]
[405802917,1771325446403,-500.0,0.00014763,2]
[405802918,1771325446412,-596.0,0.00014763,2]
[405802919,1771325446423,-150.0,0.00014763,2]
[405802920,1771325446432,-500.0,0.00014763,2]
[405802921,1771325446442,-391.49,0.00014765,2]
[405802922,1771325446451,-150.0,0.00014818,2]
[405802923,1771325446461,-500.0,0.00014818,2]
[405802924,1771325446470,-500.0,0.00014818,2]
[405802925,1771325446479,-500.0,0.00014818,2]
[405802926,1771325446488,-500.0,0.00014818,2]
[405802927,1771325446498,-616.5683879,0.00014818,2]
[405802928,1771325446507,-596.0,0.00014818,2]
[405802929,1771325446517,-201.09695119,0.00014818,2]
[405802930,1771325446526,-500.0,0.00014818,2]
[405802931,1771325446535,-166.66,0.00014845,2]
[405802932,1771325446545,-250.53819001,0.00014872,2]
[405802933,1771325446554,-500.0,0.00014872,2]
[405802934,1771325446563,-500.0,0.00014872,2]
[405802935,1771325446573,-500.0,0.00014872,2]
[405802936,1771325446582,-500.0,0.00014872,2]
[405802937,1771325446592,-596.0,0.00014872,2]
[405802938,1771325446603,-500.0,0.00014872,2]
[405802939,1771325446612,-325.66480715,0.00014926,2]
[405802940,1771325446622,-500.0,0.00014927,2]
[405802941,1771325446631,-500.0,0.00014927,2]
[405802942,1771325446642,-500.0,0.00014927,2]
[405802943,1771325446651,-500.0,0.00014927,2]
[405802944,1771325446661,-596.0,0.00014927,2]
[405802945,1771325446671,-500.0,0.00014927,2]
[405802946,1771325446680,-166.66,0.00014949,2]
[405802947,1771325446690,-225.18697532,0.00014978,2]
[405802948,1771325446700,-500.0,0.00014982,2]
[405802949,1771325446709,-500.0,0.00014982,2]
[405802950,1771325446719,-500.0,0.00014982,2]
[405802951,1771325446728,-500.0,0.00014982,2]
[405802952,1771325446738,-596.0,0.00014982,2]
[405802953,1771325446747,-500.33776257,0.00014982,2]
[405802954,1771325446756,-5814.85261277,0.00014985,2]
[405802955,1771325446765,-306.51422453,0.00015,2]
[405802956,1771325446775,-250.0,0.00015,2]
[405802957,1771325446784,-12649.0,0.00015001,2]
[405802958,1771325446794,-464.38268717,0.00015037,2]
[405802959,1771325446804,-500.0,0.00015037,2]
[405802960,1771325446813,-500.0,0.00015037,2]
[405802961,1771325446823,-500.0,0.00015037,2]
[405802962,1771325446832,-596.0,0.00015037,2]
[405802963,1771325446841,-8685.08379471,0.00015046,2]
[405802964,1771325446850,-776.66,0.00015068,2]
[405802965,1771325446860,-704.93,0.00015068,2]
[405802966,1771325446870,-500.0,0.00015092,2]
[405802967,1771325446879,-500.0,0.00015092,2]
[405802968,1771325446888,-500.0,0.00015092,2]
[405802969,1771325446898,-596.0,0.00015092,2]
[405802970,1771325446908,-788.00311282,0.00015124,2]
[405802971,1771325446917,-166.66,0.00015134,2]
[405802972,1771325446927,-500.0,0.00015146,2]
[405802973,1771325446936,-500.0,0.00015146,2]
[405802974,1771325446945,-500.0,0.00015146,2]
[405802975,1771325446955,-596.0,0.00015146,2]
[405802976,1771325446964,-500.0,0.00015201,2]
[405802977,1771325446974,-500.0,0.00015201,2]
[405802978,1771325446983,-500.0,0.00015201,2]
[405802979,1771325446993,-596.0,0.00015201,2]
[405802980,1771325447003,-160.32510575,0.00015251,2]
[405802981,1771325447013,-168.3888056,0.00015251,2]
[405802982,1771325447023,-500.0,0.00015256,2]
[405802983,1771325447032,-500.0,0.00015256,2]